Cogmind - Beta 15 @@@ ROGUE MODE // 2025.09.06 @ 17:47:21 Player: odium reigns Result: Destroyed by Y-54 Guardian with Flak Gun Performance ------------- Evolutions (3) 1500 Regions Visited (6) 1200 Robots Destroyed (97) 485 Value Destroyed (2524) 2524 Prototype IDs (7) 140 Alien Tech Used (0) 0 Bonus (135) 135 TOTAL SCORE: 5984 Bonus ------- Follower Combat Kills 135 Cogmind --------- Core Integrity 0/700 Matter 109/300 Energy 92/100 System Corruption 12% Temperature Cool (18) Movement Core (100) Ox1 Location -7/Storage Parts ------- > --- POWER (1) -------- (None) > --- PROPULSION (4) --- (None) > --- UTILITY (5) ------ Improved Sensor Array Advanced Terrain Scan Processor > --- WEAPON (3) ------- Enhanced Autogun > --- INVENTORY (5) ---- Medium Matter Pod (3) Matter Filter Mini Assault Cannon Mini Assault Cannon Peak State ------------ > --- POWER ------------ Micro Nuclear Core > --- PROPULSION ------- Armored Treads Armored Treads Armored Treads Armored Treads > --- UTILITY ---------- Large Storage Unit Advanced Visual Processing Unit Improved Signal Interpreter Advanced Targeting Computer Drone Bay > --- WEAPON ----------- Mini Assault Cannon Mini Assault Cannon Mini Assault Cannon > --- INVENTORY -------- Micro Nuclear Core Improved Heat Sink Improved Heat Sink Improved Heat Sink Medium Matter Pod Matter Filter Kinecellerator Hardened Light Armor Plating Hardlight Generator Hacking Suite Mini Assault Cannon Mini Assault Cannon Mini Assault Cannon Shock Bomb Launcher Shock Bomb Launcher [Rating: 51] Favorites ----------- Power Light Ion Engine Engine Light Ion Engine Power Core Light Nuclear Core Propulsion Armored Treads Treads Armored Treads Leg Aluminum Leg Utility Large Storage Unit Device Improved Heat Sink Storage Large Storage Unit Processor Advanced Targeting Computer Hackware Hacking Suite Protection Hardened Light Armor Plating Weapon Light Assault Rifle Energy Gun Improved Medium Laser Energy Cannon Advanced Beam Cannon Ballistic Gun Light Assault Rifle Ballistic Cannon Assault Cannon Launcher Shock Bomb Launcher Build | -11 -10 -10 -9 -8 -7 -7 ------- Run | Yrd Mat Min Mat Mat Fac Sto Slots Evolved 6 | . . . 2 2 2 . Power . | . . . . . . . Propulsion 2 | . . . . 1 1 . Utility 3 | . . . 1 1 1 . Weapon 1 | . . . 1 . . . Parts Attached 92 | 6 5 3 22 28 3 25 Power 11 | 1 . . 3 3 2 2 Engine 6 | 1 . . 3 1 . 1 Core 5 | . . . . 2 2 1 Reactor . | . . . . . . . Propulsion 27 | 2 2 . 8 11 . 4 Treads 12 | 2 . . . 6 . 4 Leg 15 | . 2 . 8 5 . . Wheel . | . . . . . . . Hover . | . . . . . . . Flight . | . . . . . . . Utility 24 | 2 . . 4 8 1 9 Device 13 | 1 . . 1 5 . 6 Storage 3 | 1 . . 1 1 . . Processor 6 | . . . 2 2 1 1 Hackware 1 | . . . . . . 1 Protection 1 | . . . . . . 1 Artifact . | . . . . . . . Weapon 30 | 1 3 3 7 6 . 10 Energy Gun 7 | . 2 . 3 2 . . Energy Cannon 1 | . . . 1 . . . Ballistic Gun 10 | 1 . 3 3 1 . 2 Ballistic Cannon 9 | . . . . 3 . 6 Launcher 3 | . 1 . . . . 2 Special Weapon . | . . . . . . . Impact Weapon . | . . . . . . . Slashing Weapon . | . . . . . . . Piercing Weapon . | . . . . . . . Special Melee Weapon . | . . . . . . . Unidentified Prototypes 7 | . . . 4 1 . 2 Parts Lost 28 | . . . 5 8 . 15 Power 4 | . . . 1 1 . 2 Propulsion 11 | . . . 3 3 . 5 Utility 7 | . . . 1 1 . 5 Weapon 6 | . . . . 3 . 3 Highest Loss Streak 13 | . . . 3 7 . 13 To Critical Strikes 2 | . . . 1 . . 1 Average Backups 9 | 6 8 7 8 10 13 13 Power . | . 1 1 . . 1 . Propulsion . | 1 1 . 1 1 . . Utility 5 | 1 2 4 3 6 8 8 Weapon 2 | 1 2 2 3 2 4 4 Tool/Special . | . . . . . . . Unused Backups 17 | . 1 2 . 3 1 10 Power 1 | . . . . . . 1 Propulsion 2 | . . . . 2 . . Utility 7 | . 1 1 . 1 . 4 Weapon 7 | . . 1 . . 1 5 Tool/Special . | . . . . . . . Average Slot Usage (%) 94 | . 97 100 94 94 99 86 Engine 6 | . 14 14 10 2 . 1 Core 3 | . . . . 6 7 4 Treads 13 | . 24 . . 13 30 25 Leg 12 | . 3 28 21 11 . . Device 9 | . 14 14 8 12 7 2 Storage 9 | . 14 14 11 9 7 6 Processor 11 | . . . 10 13 22 19 Energy Gun 4 | . 11 . 7 8 . . Energy Cannon 1 | . . . 1 5 . . Ballistic Gun 12 | . 13 27 23 7 . 1 Ballistic Cannon 7 | . . . . 4 23 18 Peak Build Rating 51 | 9 10 11 18 36 43 51 Average Rating 22 | 5 9 10 14 26 41 38 On Entrance 17 | . 9 10 11 12 36 43 Naked Turns 29 | . . . . . . 29 Heaviest Build 51 | 10 14 12 25 41 46 51 Greatest Support 80 | 40 40 20 20 60 80 80 Greatest Overweight (x) 13 | . . . 2 2 . 13 Average Overweight (x) . | . . . . . . . Largest Inventory Capacity 15 | 8 8 8 10 15 15 15 Average Capacity 11 | 7 8 8 9 13 15 13 Most Carried 15 | 8 8 8 10 15 15 15 Average Carried 10 | 6 7 7 9 11 14 13 Final Capacity 15 | 8 8 8 10 15 15 5 Final Carried 15 | 8 8 8 9 15 15 4 Class Distribution -------------------- 34% | Mutant 32% | Gunner 16% | Scavenger-Skirmisher 8% | Skirmisher 7% | Scavenger-Gunner Dominant Class ---------------- Mutant | -10/Materials Mutant | -10/Mines Skirmisher | -9/Materials Scavenger-Skirmisher | -8/Materials Gunner | -7/Factory Gunner | -7/Storage Resources | -11 -10 -10 -9 -8 -7 -7 ----------- Run | Yrd Mat Min Mat Mat Fac Sto Matter Collected 2565 | 511 75 165 399 453 170 792 Remotely . | . . . . . . . Salvage Created 3507 | 241 227 90 819 1023 112 995 Parts 190 | 27 8 8 41 56 2 48 Haulers Intercepted 9 | . . . 2 2 . 5 Recyclers Shooed 5 | 1 2 . 1 . . 1 Parts Field Recycled . | . . . . . . . Retrieved Matter . | . . . . . . . Parts Self-Destructed . | . . . . . . . Prevented . | . . . . . . . Kills | -11 -10 -10 -9 -8 -7 -7 ------- Run | Yrd Mat Min Mat Mat Fac Sto Combat Hostiles Destroyed 62 | . 2 6 15 20 3 16 Guns 33 | . 2 6 13 11 . 1 Cannons 24 | . . . 2 9 3 10 AOE 5 | . . . . . . 5 Classes Destroyed 15 | 3 2 1 4 1 . 4 Worker 7 | 2 . . . 2 . 3 Builder 2 | . . . . . . 2 Tunneler 6 | 6 . . . . . . Hauler 9 | . . . 2 2 . 5 Recycler 6 | 1 2 . 2 . . 1 Operator 2 | . 1 . . . 1 . Watcher 3 | . . . 1 2 . . Swarmer 14 | . . 6 4 4 . . Cutter 2 | . . . . 2 . . Grunt 28 | . 2 . 8 10 3 5 Brawler 1 | . . . 1 . . . Duelist 1 | . . . . . . 1 Protector 1 | . . . . . . 1 Sentry 14 | . . . 2 4 . 8 Programmer 1 | . . . . . . 1 Best Kill Streak 11 | 3 5 3 7 7 3 11 Combat Bots Only 7 | . 2 3 7 6 3 4 Max Kills in Single Turn 4 | 1 1 2 1 1 1 4 Gunslinging 1 | . . 1 . . . . Exploded 2 | . . . . . . 2 Melee . | . . . . . . . Uniques/NPCs Destroyed . | . . . . . . . Combat | -11 -10 -10 -9 -8 -7 -7 -------- Run | Yrd Mat Min Mat Mat Fac Sto Hostile Shots Fired 779 | . 19 44 129 87 14 486 Missed 267 | . 7 14 43 21 7 175 Hits 512 | . 12 30 86 66 7 311 Melee 32 | . . . 6 4 . 22 Projectile 480 | . 12 30 80 62 7 289 Critical Strikes 14 | . . . 4 3 . 7 Damage Taken 6331 | . 213 241 1049 951 113 3764 Core 1074 | . . 58 118 194 . 704 Absorbed by Shields . | . . . . . . . Core Remaining (%) 77 | 100 . 76 70 64 . . Volleys Fired 270 | 61 21 25 53 53 7 50 Largest 3 | 1 2 2 3 3 3 3 Hottest 189 | 20 60 40 135 189 111 120 Shots Fired 599 | 61 41 50 146 148 21 132 Gun 415 | 61 40 50 139 107 . 18 Cannon 176 | . . . 6 41 21 108 Launcher 8 | . 1 . 1 . . 6 Special . | . . . . . . . Kinetic 437 | 61 20 50 110 49 21 126 Thermal 125 | . . . 26 99 . . Explosive 2 | . 1 . 1 . . . Electromagnetic 35 | . 20 . 9 . . 6 Robot Hit Streak 19 | 9 11 12 10 19 8 15 Robot Miss Streak 5 | 2 4 5 4 4 2 2 Penetration Max . | . . . . . . . Secondary Targets 10 | . 1 2 5 2 . . Max Gunslinging Chain 1 | . 1 1 1 1 . . Shots Hit Robots 378 | 41 30 24 88 93 12 90 Core Hits 179 | 17 10 9 35 42 6 60 Critical Kills . | . . . . . . . Critical Parts Destroyed 2 | . . . 2 . . . Critical Strikes 17 | . 1 . 3 5 1 7 Burn 6 | . . . 1 5 . . Destroy 2 | . . . 2 . . . Blast 8 | . . . . . 1 7 Corrupt 1 | . 1 . . . . . Melee Attacks . | . . . . . . . Impact . | . . . . . . . Slashing . | . . . . . . . Piercing . | . . . . . . . Sneak Attacks . | . . . . . . . Combat Hostiles . | . . . . . . . Follow-up Attacks . | . . . . . . . Damage Inflicted 7909 | 334 487 262 1352 1689 307 3478 Guns 3581 | 334 332 255 1255 1148 . 257 Cannons 3248 | . . . 83 515 307 2343 Explosions 1033 | . 155 . . . . 878 Melee . | . . . . . . . Ramming 47 | . . 7 14 26 . . Kinetic 4874 | 334 135 255 849 394 307 2600 Thermal 1893 | . 155 . 308 1269 . 161 Explosive . | . . . . . . . Electromagnetic 1095 | . 197 . 181 . . 717 Impact . | . . . . . . . Slashing . | . . . . . . . Piercing . | . . . . . . . Highest Corruption 12 | . . . 3 . . 12 Average Corruption 7 | . . . 3 . . 12 Corruption Purged . | . . . . . . . Corruption Blocked . | . . . . . . . Effects 9 | . . . 3 . . 6 Message Errors 2 | . . . 1 . . 1 Matter Fused 1 | . . . . . . 1 Data Loss (minor) 3 | . . . 1 . . 2 Data Loss (major) 1 | . . . . . . 1 Misdirections 1 | . . . . . . 1 Weapon Failures 1 | . . . 1 . . . Overload Shots . | . . . . . . . Overflow Damage 64 | . 22 . . . . 42 Projectiles 33 | . . . . . . 33 Explosions 31 | . 22 . . . . 9 Melee . | . . . . . . . Knockbacks 9 | . . . 1 . . 8 Impact 1 | . . . 1 . . . Kinetic 8 | . . . . . . 8 Secondary . | . . . . . . . Self-Inflicted Damage 79 | . 57 . . . . 22 Shots 3 | . 2 . . . . 1 Rammed 1 | . . . . 1 . . Targets Rammed 7 | . . 2 3 2 . . Kicked 6 | . . 2 3 1 . . Crushed . | . . . . . . . Highest Temperature 432 | . 108 . 411 432 22 416 Average Temperature 110 | . 58 . 95 114 9 142 Received Heat Transfer 2259 | . 72 . 399 450 63 1275 Effects 6 | . . . . 1 . 5 Shutdowns 1 | . . . . 1 . . Energy Bleed 2 | . . . . . . 2 Interference 3 | . . . . . . 3 Siege Activations . | . . . . . . . Martial Activations . | . . . . . . . Shielding Activations . | . . . . . . . Robots Disrupted . | . . . . . . . Combat Hostiles . | . . . . . . . Robots Corrupted . | . . . . . . . Combat Hostiles . | . . . . . . . Parts Fried 1 | . . . . . . 1 Impact Corruptions . | . . . . . . . Robots Melted . | . . . . . . . Combat Hostiles . | . . . . . . . Parts Melted 6 | . . . 3 3 . . Heat Transferred 4100 | . 200 . 703 2997 . 200 Parts Sabotaged . | . . . . . . . Parts Stolen . | . . . . . . . Parts Stripped . | . . . . . . . Power Chain Reactions 5 | . 3 . . . . 2 Alert | -11 -10 -10 -9 -8 -7 -7 ------- Run | Yrd Mat Min Mat Mat Fac Sto Maximum Alert Level 1 | . . . 1 1 . 1 Low Security (%) 80 | 100 100 100 73 58 100 69 Level 1 19 | . . . 26 41 . 30 Level 2 . | . . . . . . . Level 3 . | . . . . . . . Level 4 . | . . . . . . . Level 5 . | . . . . . . . High Security . | . . . . . . . Max Security . | . . . . . . . Peak Influence 315 | 10 68 83 276 315 107 228 Initial 107 | . . 18 . 101 107 14 Average 87 | 1 26 23 110 161 65 104 Influence Increases 2254 | 45 98 155 602 550 76 728 Destroy 0b10 Robot/C 1320 | . 40 120 400 400 60 300 Destroy 0b10 Robot/NC 185 | 45 15 . 30 30 5 60 Destroy Leader 346 | . 10 20 78 108 10 120 Allied During Kill 23 | . . . 18 . . 5 Successful Hack 7 | . . . 5 2 . . Disable Machine 75 | . 15 . 60 . . . Destroy Structure 58 | . 18 . 11 10 1 18 Partial Spotted 15 | . . . . . . 15 Lose Combat Pursuer 225 | . . 15 . . . 210 Influence Decreases 2050 | 45 50 203 362 553 280 557 Entered New Map 318 | . . 30 . 139 130 19 Time Decay 1232 | 45 50 173 252 334 150 228 Lost Part 280 | . . . 50 80 . 150 Lost Ally 220 | . . . 60 . . 160 Squads Dispatched 18 | . 1 . 1 6 1 9 Investigation 2 | . . . . 1 . 1 Extermination 1 | . . . . . . 1 Reinforcement 8 | . 1 . 1 4 1 1 Assault 2 | . . . . . . 2 Garrison 5 | . . . . 1 . 4 Intercept . | . . . . . . . Searches Triggered . | . . . . . . . Construction Impeded . | . . . . . . . Haulers Reinforced 1 | . . . . . . 1 Active Scanning Responses . | . . . . . . . Cargo Convoy Interrupts . | . . . . . . . Stealth | -11 -10 -10 -9 -8 -7 -7 --------- Run | Yrd Mat Min Mat Mat Fac Sto Distress Signals 6 | . . . 2 2 . 2 Communications Jammed . | . . . . . . . Distress Signals . | . . . . . . . Times Spotted 109 | . 5 7 29 25 4 39 Peak Tracking Total 13 | . 2 3 7 6 3 13 Tactical Retreats 5 | . . 1 . . . 4 Traps | -11 -10 -10 -9 -8 -7 -7 ------- Run | Yrd Mat Min Mat Mat Fac Sto Traps Triggered 3 | . 1 . . . . 2 Indirectly 2 | . . . . . . 2 Trap Hack Attempts . | . . . . . . . Triggered . | . . . . . . . Disarmed . | . . . . . . . Reprogrammed . | . . . . . . . Reused . | . . . . . . . Traps Extracted . | . . . . . . . Installed . | . . . . . . . Triggered . | . . . . . . . Machines | -11 -10 -10 -9 -8 -7 -7 ---------- Run | Yrd Mat Min Mat Mat Fac Sto Machines Disabled 5 | . 1 . 4 . . . Max in Single Turn 1 | . 1 . 1 . . . Garrison Access 1 | . . . . . . 1 Machines Repaired . | . . . . . . . Machines Dismantled . | . . . . . . . Machines Sabotaged . | . . . . . . . Overloaded Fab Kills . | . . . . . . . Hacking | -11 -10 -10 -9 -8 -7 -7 --------- Run | Yrd Mat Min Mat Mat Fac Sto Machines Accessed 14 | . 1 1 2 2 2 6 Terminals 9 | . 1 . 2 . 2 4 Fabricators . | . . . . . . . Repair Stations 1 | . . . . . . 1 Recycling Units . | . . . . . . . Scanalyzers 2 | . . . . 2 . . Garrison Access 1 | . . . . . . 1 Total Hacks 30 | . 2 1 6 9 2 10 Successful 17 | . 1 1 3 8 1 3 Failed 13 | . 1 . 3 1 1 7 Catastrophic 3 | . . . . . 1 2 Database Lockouts . | . . . . . . . Manual . | . . . . . . . Terminals 17 | . 2 . 6 . 2 7 Fabricators . | . . . . . . . Repair Stations 1 | . . . . . . 1 Recycling Units . | . . . . . . . Scanalyzers 9 | . . . . 9 . . Garrison Access 2 | . . . . . . 2 Terminal Hacks 8 | . 1 1 3 . 1 2 Open Door 3 | . . 1 . . . 2 Open DSF 1 | . . . . . 1 . Alert Level 1 | . . . 1 . . . Hauler Manifests 1 | . . . 1 . . . Zone Layout 2 | . 1 . 1 . . . Fabricator Hacks . | . . . . . . . Repair Station Hacks . | . . . . . . . Recycling Unit Hacks . | . . . . . . . Scanalyzer 8 | . . . . 8 . . Insert Component 3 | . . . . 3 . . Analyze 5 | . . . . 5 . . Garrison Access Hacks 1 | . . . . . . 1 Seal Access 1 | . . . . . . 1 Unauthorized Hacks . | . . . . . . . Terminals . | . . . . . . . Fabricators . | . . . . . . . Repair Stations . | . . . . . . . Recycling Units . | . . . . . . . Scanalyzers . | . . . . . . . Garrison Access . | . . . . . . . Data Cores Recovered . | . . . . . . . Used . | . . . . . . . Hacking Detections 8 | . . . 1 2 1 4 Full Trace Events 3 | . . . . 2 . 1 Feedback Events . | . . . . . . . Feedback Blocked . | . . . . . . . Robot Schematics Acquired . | . . . . . . . Robots Built . | . . . . . . . Authchips . | . . . . . . . Time . | . . . . . . . Total Robot Build Rating . | . . . . . . . Part Schematics Acquired 3 | . . . . 3 . . Parts Built . | . . . . . . . Authchips . | . . . . . . . Time . | . . . . . . . Total Part Build Rating . | . . . . . . . Parts Repaired . | . . . . . . . Time . | . . . . . . . Parts Recycled . | . . . . . . . Recycled Matter . | . . . . . . . Retrieved Matter . | . . . . . . . Retrieved Components . | . . . . . . . Parts Scanalyzed 3 | . . . . 3 . . Part Schematics Acquired 3 | . . . . 3 . . Parts Damaged . | . . . . . . . Bothacking | -11 -10 -10 -9 -8 -7 -7 ------------ Run | Yrd Mat Min Mat Mat Fac Sto Used RIF Installer . | . . . . . . . Robots Hacked . | . . . . . . . Non-combat . | . . . . . . . Combat . | . . . . . . . Robot Hacks Applied . | . . . . . . . Relay Couplers Released . | . . . . . . . Fabnet Peak Effective % . | . . . . . . . Robots Rewired . | . . . . . . . Allies Hacked . | . . . . . . . Hacks Repelled . | . . . . . . . Allies | -11 -10 -10 -9 -8 -7 -7 -------- Run | Yrd Mat Min Mat Mat Fac Sto Total Allies 5 | . . 3 . . . 2 Largest Group 3 | . . 3 3 . . 2 Highest-Rated Group 62 | . . 40 40 . . 62 Highest-Rated Ally 31 | . . 16 16 . . 31 Total Orders 1 | . . . . . . 1 EXPLORE 1 | . . . . . . 1 Ally Attacks 40 | . . . 20 . . 20 Total Damage 506 | . . . 236 . . 270 Kills 6 | . . . 6 . . . Allies Corrupted . | . . . . . . . Allies Melted . | . . . . . . . Intel | -11 -10 -10 -9 -8 -7 -7 ------- Run | Yrd Mat Min Mat Mat Fac Sto Active Infowar (turns) 2403 | 14 187 563 433 330 298 578 Optics 865 | . . . . . 298 567 Sensors 747 | . . . 406 330 . 11 Terrain 793 | 14 187 563 29 . . . Traps 219 | . . . . 219 . . Robot Analysis Total . | . . . . . . . Derelict Logs Recovered 2 | . . 2 . . . . Drone Launches 17 | . . . . . . 17 Drone Recoveries 3 | . . . . . . 3 Exploration | -11 -10 -10 -9 -8 -7 -7 ------------- Run | Yrd Mat Min Mat Mat Fac Sto Turns Passed 3355 | 296 187 564 565 754 316 673 Spaces Moved 1632 | 112 77 400 214 317 159 353 Core 141 | 10 . . . . . 131 Treads 705 | 102 59 . . 163 159 222 Legs 786 | . 18 400 214 154 . . Wheels . | . . . . . . . Hover . | . . . . . . . Flight . | . . . . . . . Fastest Speed 50 | 50 120 120 120 120 170 50 Average Speed 143 | 150 150 120 157 164 170 126 Slowest Speed 700 | 160 160 120 260 260 170 700 Overloaded Moves . | . . . . . . . Propulsion Burnouts . | . . . . . . . Robots Hopped . | . . . . . . . Potential Cave-ins . | . . . . . . . Cave-ins Triggered . | . . . . . . . Exploration Rate (%) 31 | 6 17 81 23 23 5 64 Regions Visited 6 Branch Regions 2 Pre-discovered Areas . | . . . . . . . Known Exits Taken 3 | . . . 1 1 1 . Unknown Exits Taken 3 | 1 1 1 . . . . Scrap Searched 3 | . . 3 . . . . Spaces Dug . | . . . . . . . Terrain Destroyed 50 | . 16 . 10 3 1 20 Melee . | . . . . . . . Projectile 19 | . . . . 3 1 15 AOE 31 | . 16 . 10 . . 5 Terrain Rammed . | . . . . . . . Walls Destroyed . | . . . . . . . Machines Disabled . | . . . . . . . Actions | -11 -10 -10 -9 -8 -7 -7 --------- Run | Yrd Mat Min Mat Mat Fac Sto Total 2192 | 191 109 440 336 443 190 483 Wait 49 | . . . 18 7 14 10 Move 1626 | 111 76 399 213 316 158 353 Hop . | . . . . . . . Pick Up 57 | 13 3 3 6 17 3 12 Fast Attach 38 | 1 1 2 7 13 . 14 Attach 25 | 5 . . 4 8 2 6 Detach 3 | . . . 1 2 . . Swap 45 | . 5 2 16 9 3 10 Drop 65 | . 3 7 15 16 3 21 Fire 270 | 61 21 25 53 53 7 50 Melee . | . . . . . . . Ram . | . . . . . . . Kick 6 | . . 2 3 1 . . Crush 1 | . . . . 1 . . Escape Stasis . | . . . . . . . Rewire . | . . . . . . . Trap . | . . . . . . . Miscellaneous 7 | . . . . . . 7 Route ------- -11/Scrapyard -10/Materials -10/Mines -9/Materials (discovered 2 exits: *Mat x2) -8/Materials -7/Factory -7/Storage History --------- Turn | Location | Event 8 | -11/Scrapyard | Discovered new exit (range 16) 297 | -11/Scrapyard | Entered Materials 304 | -10/Materials | Build established: Mutant 340 | -10/Materials | Discovered new exit (range 9) 484 | -10/Materials | Entered Mines 599 | -10/Mines | Found the Drone Emporium 611 | -10/Mines | Found Prototype Device 854 | -10/Mines | Learned Materials trap positions 982 | -10/Mines | Assisted by bots powering up and referring to "LRC-V3" 1000 | -10/Mines | Discovered new exit (range 10) 1002 | -10/Mines | Learned location of 1 exit from Materials 1048 | -10/Mines | Entered Materials 1048 | -9/Materials | Accompanied by 3 allies 1048 | -9/Materials | Evolved 2 slots: Utility x1, Weapon x1 1049 | -9/Materials | Identified exit to Materials 1050 | -9/Materials | Loaded intel: 13 trap records 1439 | -9/Materials | Discovered exit to Materials (range 10) 1493 | -9/Materials | Destroyed 7 combat bots 1613 | -9/Materials | Entered another Materials area 1613 | -8/Materials | Evolved 2 slots: Propulsion x1, Utility x1 1615 | -8/Materials | Identified Decoy Drone Bay 1620 | -8/Materials | Lost 3 parts (1p2n) 1852 | -8/Materials | Lost 7 parts (1p3n3w) 1931 | -8/Materials | Build established: Scavenger-Skirmisher 1954 | -8/Materials | Garrison activated, responded to threat 2296 | -8/Materials | Discovered new exit (range 16) 2319 | -8/Materials | Identified exit to Factory 2367 | -8/Materials | Entered Factory 2367 | -7/Factory | Evolved 2 slots: Propulsion x1, Utility x1 2390 | -7/Factory | Discovered new exit (range 20) 2406 | -7/Factory | Build established: Gunner 2681 | -7/Factory | Identified exit to Storage 2683 | -7/Factory | Entered Storage 3017 | -7/Storage | Lost 14 allies 3163 | -7/Storage | Met a pair of Derelict thieves 3247 | -7/Storage | Core integrity fell below 50% 3251 | -7/Storage | System corruption reached 10% 3269 | -7/Storage | Core integrity fell below 20% 3271 | -7/Storage | Released all parts (3) 3302 | -7/Storage | Lost 13 parts (2p4n5u2w) 3356 | -7/Storage | Destroyed by Y-54 Guardian with Flak Gun Last Messages --------------- 03269_ Imp. Heat Sink destroyed. 03270_ U-05 Engineer lays Concrete. 03271_ Mic. Nuclear Core destroyed. 03271_ Released Lrg. Storage Unit. 03271_ Released Imp. Signal Interpreter. 03271_ Released Mni. Assault Cannon. 03271_ U-05 Engineer lays Concrete. 03272_ System corrupted: Component data lost. 03285_ Connecting with Terminal... 03285_ ALERT: Suspicious activity at Terminal S002. Dispatching Investigation squad. 03294_ V,QZLHF#N/#S94JOFWASEMHIMRN 03301_ ALERT: Potential suspicious activity detected, Programmers report to Storage Zone 6L. 03311_ System corrupted: Component data lost. 03312_ R-06 Scavenger destroyed. 03314_ Acquired 61 matter. 03326_ System corrupted: Matter fused (-10). 03343_ Acquired Adv. Terrain Scan Processor. 03345_ Acquired Imp. Sensor Array. Map ----- +----------------------------------------------------+ | ????# ##+##+## %!= * #### | | ????# # # "" "" + [ | | ????# # # ""G""! # | | ????# ##+####### """ #####+########## # / | | ????# # #?# """ ## #????# #] | | ????# # #?# """ ## """"" "" #?# # | | ????# # #? ## """"" """#?# ##+## | | ????# # ########### """"" T"#?# | | ????# + #?????????# """#?# ## | | ????# # #?????????# """"" "" #?# "" #? | | ????# ########?????????# """"" ####?# "" #? | | ????# ?????????????????# """"" #????# "T #? | | ????? ????????????????? #????#^ "" #? | | ????? ?????????????????##" "???##????# "" #? | | ????? ???????????????????"R""????????# #? | | ?????+???????????????????"""?????????# # | | ?????????????????????????#???????????# + | | ????????????????????????????????######= # | | ???????????????????????????????? #*= #? | | ???????????????????????????????? !!! + """ #+ | | ???????????????????????????????? !! #^^""" | | ??????????????????##+###???????? !! ?# """ | | ??????????????????# #???????? ?+ | | ??????????????????# #???????? ??# | | ??????????????????# ## #####/#### """ | | ??????????????????# @/ Y k """ | | ??????????????????# ## #### """ | | ??????????????????# ###+##### | | ??????????????????# # + | | ??????????????????# # """################ | | ??????????????????# + """#??????????????? | | ??????????????????###### """#??????????????? | | ???????????????????????# #??????????????? | | ???????????????????????#########??????????????? | | | | | | | | | | | | | | | | | | | | | | | | | | | | | | | | | +----------------------------------------------------+ Best States ------------- Heat Dissipation 48 Energy Generation 16 Energy Capacity 290 Matter Stores 300 Matter Capacity 300 Sight Range 20 Robot Scan Range 15 Terrain Scan Range 16 Terrain Scan Density 210 Armor Coverage 150 Evasion (%) 55 Targeting Accuracy 8 Recoil Reduction 4 Kinecelleration 30 Offensive Hacking 10 Item Schematics ----------------- Adv. Targeting Computer | -8/Materials | Scanalyzed Hacking Suite | -8/Materials | Scanalyzed Arm. Treads | -8/Materials | Scanalyzed Robot Schematics ------------------ None Fabricated ------------ Nothing Repaired ---------- Nothing Alien Tech Used ----------------- None Achievements -------------- None Challenges ------------ None Game ------ Seed JammingBiocellFalx Manual? 0 Play Time 00:58:17 Cumulative 52.0 hours Start 2025.09.06 @ 14:40:37 End 2025.09.06 @ 17:47:21 Sessions 1 Manual Loads 0 Difficulty Rogue Special Mode None Game No. 38 Rogue 38 Adventurer 0 Explorer 0 Win Type - Total 0 Types 0/0/0/0/0/0/0/0/0/0 Lore% 19 Gallery% 40 Achievement% 32 Wizard Run 0 Options --------- Layout 0 ASCII 0 Keyboard 0 Movement Mouse Keybinds 0 Fullscreen 1 Font 12/Smallcaps Map View 38x28 Zoom Use 99% Tactical HUD 1 Map Filters NONE Filters NONE Steam SD RUN: ab868816-e8f6-4a50-b59b-09e9123d5846